[Event "22nd Ruzomberok Open 2019"]
[Site "Ruzomberok"]
[Date "2019.06.30"]
[Round "2.1"]
[White "Jablonicky, Martin"]
[Black "Balogh, Peter"]
[Result "1-0"]
[ECO "E46"]
[WhiteElo "2378"]
[BlackElo "2258"]
[Annotator "NA"]
[PlyCount "67"]
[EventDate "2019.06.29"]
[EventType "swiss"]
[EventCountry "SVK"]
[SourceTitle "playchess.com"]
[Source "ChessBase"]
[SourceQuality "1"]
[TimeControl "40/5400+30:1800+30"]

1. d4 {[%emt 0:00:00]} Nf6 {[%emt 0:02:51]} 2. c4 {[%emt 0:00:00]} e6 {[%emt 0:01:46]} 3. Nc3 {[%emt 0:00:06]} Bb4 {[%emt 0:00:15]} 4. e3 {[%emt 0:00:29]} O-O {[%emt 0:01:01]} 5. Nge2 {[%emt 0:00:08]} d5 {[%emt 0:00:52]} 6. a3 {[%emt 0:00:09]} Be7 {[%emt 0:00:43]} 7. cxd5 {[%emt 0:00:25]} Nxd5 {[%emt 0:03:27]} 8. g3 {[%emt 0:03:41]} Nd7 {[%emt 0:04:05]} 9. Bg2 {[%emt 0:00:18]} Nxc3 {[%emt 0:00:35]} 10. bxc3 {[%emt 0:04:13]} c6 {[%emt 0:01:42]} 11. O-O {[%emt 0:00:09]} e5 {[%emt 0:00:54]} 12. a4 {[%emt 0:04:31]} exd4 {[%emt 0:02:09]} 13. cxd4 {[%emt 0:00:11]} Nf6 {[%emt 0:00:46]} 14. Nf4 {[%emt 0:02:48]} Qc7 {[%emt 0:07:15]} 15. Qc2 {[%emt 0:01:46]} Bd7 {[%emt 0:03:01]} 16. e4 {[%emt 0:02:53]} Ne8 {[%emt 0:04:15]} 17. Bd2 {[%emt 0:04:21]} g6 {[%emt 0:03:46]} 18. Rab1 {[%emt 0:00:34]} Rb8 {[%emt 0:03:57]} 19. Rfc1 {[%emt 0:00:59]} Qd8 {[%emt 0:05:34]} 20. a5 {[%emt 0:01:34]} Ng7 {[%emt 0:01:59]} 21. Be3 {[%emt 0:03:50]} a6 {[%emt 0:10:19]} 22. Rb6 {[%emt 0:02:15]} Qc8 {[%emt 0:02:49]} 23. Qa2 {[%emt 0:00:32]} Bd8 {[%emt 0:00:31]} 24. Rb2 {[%emt 0:01:12]} Bc7 {[%emt 0:01:23]} 25. Nd3 {[%emt 0:09:55]} Qd8 {[%emt 0:03:09]} 26. Nc5 {[%emt 0:00:13]} Bc8 {[%emt 0:00:27]} 27. Rcb1 {[%emt 0:03:43]} Bxa5 {[%emt 0:07:42]} 28. Nxb7 {[%emt 0:00:41]} Bxb7 {[%emt 0:00:39]} 29. Rxb7 {[%emt 0:00:07]} Rxb7 {[%emt 0:01:19]} 30. Rxb7 {[%emt 0:00:14]} Qc8 {[%emt 0:05:27]} 31. Ra7 {[%emt 0:01:24]} Bb6 {[%emt 0:01:30]} 32. Rxa6 {[%emt 0:00:12]} Qb7 {[%emt 0:00:24]} 33. Bf1 {[%emt 0:02:35]} Rb8 {[%emt 0:04:19]} 34. Bf4 {[%emt 0:04:22]} 1-0

[Event "22nd Ruzomberok Open 2019"]
[Site "Ruzomberok"]
[Date "2019.06.30"]
[Round "2.2"]
[White "Palider, Pavol"]
[Black "Farkas, Gabor"]
[Result "0-1"]
[ECO "B23"]
[WhiteElo "2026"]
[BlackElo "2353"]
[Annotator "NA"]
[PlyCount "118"]
[EventDate "2019.06.29"]
[EventType "swiss"]
[EventCountry "SVK"]
[SourceTitle "playchess.com"]
[Source "ChessBase"]
[SourceQuality "1"]
[TimeControl "40/5400+30:1800+30"]

1. e4 {[%emt 0:00:00]} c5 {[%emt 0:00:00]} 2. Nc3 {[%emt 0:00:00]} Nc6 {[%emt 0:02:32]} 3. Nge2 {[%emt 0:00:08]} e6 {[%emt 0:00:26]} 4. g3 {[%emt 0:02:38]} d5 {[%emt 0:09:05]} 5. exd5 {[%emt 0:04:10]} exd5 {[%emt 0:00:08]} 6. Bg2 {[%emt 0:00:23]} Nf6 {[%emt 0:03:22]} 7. O-O {[%emt 0:05:27]} d4 {[%emt 0:02:51]} 8. Ne4 {[%emt 0:00:18]} Nxe4 {[%emt 0:02:36]} 9. Bxe4 {[%emt 0:00:08]} Bg4 {[%emt 0:01:35]} 10. f3 {[%emt 0:02:33]} Bd7 {[%emt 0:03:21]} 11. Re1 {[%emt 0:02:19]} Be7 {[%emt 0:00:31]} 12. d3 {[%emt 0:01:37]} O-O {[%emt 0:02:16]} 13. Nf4 {[%emt 0:01:13]} Bd6 {[%emt 0:02:49]} 14. Ng2 {[%emt 0:03:11]} Qc7 {[%emt 0:08:19]} 15. f4 {[%emt 0:02:12]} f5 {[%emt 0:07:31]} 16. Bd5+ {[%emt 0:01:13]} Kh8 {[%emt 0:00:07]} 17. a3 {[%emt 0:01:08]} Ne7 {[%emt 0:01:50]} 18. Bf3 {[%emt 0:01:29]} Rae8 {[%emt 0:02:16]} 19. c4 {[%emt 0:01:32]} Ng8 {[%emt 0:03:03]} 20. Bd2 {[%emt 0:01:18]} Nf6 {[%emt 0:00:40]} 21. b4 {[%emt 0:00:43]} b5 {[%emt 0:06:00]} 22. bxc5 {[%emt 0:01:02]} Bxc5 {[%emt 0:02:10]} 23. cxb5 {[%emt 0:02:01]} Bxb5 {[%emt 0:01:40]} 24. Rc1 {[%emt 0:03:23]} Qd6 {[%emt 0:04:04]} 25. Rxc5 {[%emt 0:01:54]} Qxc5 {[%emt 0:00:14]} 26. Bb4 {[%emt 0:00:08]} Qb6 {[%emt 0:00:27]} 27. Bxf8 {[%emt 0:00:34]} Rxf8 {[%emt 0:00:07]} 28. Qb3 {[%emt 0:00:47]} Qa6 {[%emt 0:01:50]} 29. Re6 {[%emt 0:07:32]} Qa5 {[%emt 0:08:34]} 30. Re5 {[%emt 0:01:38]} a6 {[%emt 0:00:21]} 31. Ne1 {[%emt 0:11:03]} Nd7 {[%emt 0:04:32]} 32. Re7 {[%emt 0:03:03]} Nc5 {[%emt 0:10:29]} 33. Qd5 {[%emt 0:01:12]} Ne4 {[%emt 0:03:44]} 34. Ng2 {[%emt 0:09:33]} Nf6 {[%emt 0:00:39]} 35. Qxd4 {[%emt 0:01:33]} Qxa3 {[%emt 0:00:14]} 36. Re3 {[%emt 0:05:50]} Rc8 {[%emt 0:01:08]} 37. Ne1 {[%emt 0:01:16]} Qc3 {[%emt 0:02:05]} 38. Qe5 {[%emt 0:01:51]} Qc1 {[%emt 0:01:33]} 39. Qd4 {[%emt 0:02:17]} Qc3 {[%emt 0:00:34]} 40. Qe5 {[%emt 0:02:33]} Qc1 {[%emt 0:00:08]} 41. Qd4 {[%emt 0:30:13]} a5 {[%emt 0:32:37]} 42. h3 {[%emt 0:01:46]} a4 {[%emt 0:00:00]} 43. g4 {[%emt 0:00:00]} a3 {[%emt 0:00:00]} 44. g5 {[%emt 0:00:00]} Ne4 {[%emt 0:00:00]} 45. dxe4 {[%emt 0:00:00]} a2 {[%emt 0:00:00]} 46. exf5 {[%emt 0:00:00]} a1=Q {[%emt 0:00:00]} 47. Qb6 {[%emt 0:00:00]} Qc5 {[%emt 0:00:00]} 48. Qxc5 {[%emt 0:00:00]} Rxc5 {[%emt 0:00:00]} 49. Kh2 {[%emt 0:00:00]} Rxf5 {[%emt 0:00:00]} 50. Ng2 {[%emt 0:00:00]} Rf8 {[%emt 0:00:00]} 51. Kg3 {[%emt 0:00:00]} Qa7 {[%emt 0:00:00]} 52. Re5 {[%emt 0:00:00]} Bf1 {[%emt 0:00:00]} 53. Ne3 {[%emt 0:00:00]} Bd3 {[%emt 0:00:00]} 54. h4 {[%emt 0:00:00]} Qd4 {[%emt 0:00:00]} 55. Ng2 {[%emt 0:00:00]} g6 {[%emt 0:00:00]} 56. Re1 {[%emt 0:00:00]} Bf5 {[%emt 0:00:00]} 57. h5 {[%emt 0:00:00]} gxh5 {[%emt 0:00:00]} 58. Bxh5 {[%emt 0:00:59]} Be4 {[%emt 0:00:00]} 59. Ne3 {[%emt 0:00:58]} Bg6 {[%emt 0:00:00]} 0-1

[Event "22nd Ruzomberok Open 2019"]
[Site "Ruzomberok"]
[Date "2019.06.30"]
[Round "2.3"]
[White "Vojtek, Vladimir"]
[Black "Viczencz, Peter"]
[Result "1-0"]
[ECO "A00"]
[WhiteElo "2313"]
[BlackElo "2014"]
[Annotator "NA"]
[PlyCount "65"]
[EventDate "2019.06.29"]
[EventType "swiss"]
[EventCountry "SVK"]
[SourceTitle "playchess.com"]
[Source "ChessBase"]
[SourceQuality "1"]
[TimeControl "40/5400+30:1800+30"]

1. b4 {[%emt 0:00:00]} e6 {[%emt 0:00:01]} 2. Bb2 {[%emt 0:00:00]} Nf6 {[%emt 0:00:08]} 3. a3 {[%emt 0:00:23]} c5 {[%emt 0:00:17]} 4. b5 {[%emt 0:02:07]} d5 {[%emt 0:00:50]} 5. e3 {[%emt 0:01:15]} a6 {[%emt 0:01:09]} 6. Nf3 {[%emt 0:03:03]} axb5 {[%emt 0:02:37]} 7. Bxb5+ {[%emt 0:00:12]} Bd7 {[%emt 0:00:08]} 8. Be2 {[%emt 0:02:59]} c4 {[%emt 0:03:12]} 9. O-O {[%emt 0:01:05]} Be7 {[%emt 0:00:29]} 10. Ne5 {[%emt 0:06:38]} O-O {[%emt 0:01:27]} 11. d3 {[%emt 0:01:33]} b5 {[%emt 0:01:09]} 12. f4 {[%emt 0:05:19]} Qb6 {[%emt 0:02:37]} 13. Bd4 {[%emt 0:01:26]} Bc5 {[%emt 0:00:27]} 14. Bxc5 {[%emt 0:02:50]} Qxc5 {[%emt 0:00:53]} 15. d4 {[%emt 0:00:03]} Qd6 {[%emt 0:00:32]} 16. Bf3 {[%emt 0:01:00]} Ra7 {[%emt 0:01:28]} 17. c3 {[%emt 0:01:30]} Ne4 {[%emt 0:03:06]} 18. Bxe4 {[%emt 0:05:01]} dxe4 {[%emt 0:01:51]} 19. Qc2 {[%emt 0:00:58]} f5 {[%emt 0:00:53]} 20. g4 {[%emt 0:06:08]} Na6 {[%emt 0:00:58]} 21. Kh1 {[%emt 0:00:32]} Nc7 {[%emt 0:03:42]} 22. Rg1 {[%emt 0:05:08]} Nd5 {[%emt 0:01:03]} 23. Rg3 {[%emt 0:01:57]} Be8 {[%emt 0:01:48]} 24. Ra2 {[%emt 0:02:19]} Nf6 {[%emt 0:02:30]} 25. Qd1 {[%emt 0:08:36]} Nxg4 {[%emt 0:01:49]} 26. Nxg4 {[%emt 0:00:13]} fxg4 {[%emt 0:00:06]} 27. Qxg4 {[%emt 0:00:29]} Bg6 {[%emt 0:02:01]} 28. Qd1 {[%emt 0:06:06]} Qd5 {[%emt 0:01:16]} 29. Rg5 {[%emt 0:01:15]} Rf5 {[%emt 0:00:24]} 30. Rag2 {[%emt 0:00:54]} Bh5 {[%emt 0:00:29]} 31. Qxh5 {[%emt 0:00:45]} g6 {[%emt 0:02:11]} 32. Rxg6+ {[%emt 0:01:16]} hxg6 {[%emt 0:00:15]} 33. Qxg6+ {[%emt 0:00:06]} 1-0

[Event "22nd Ruzomberok Open 2019"]
[Site "Ruzomberok"]
[Date "2019.06.30"]
[Round "2.4"]
[White "Baleja, Marian"]
[Black "Zvarik, Martin"]
[Result "0-1"]
[ECO "B07"]
[WhiteElo "1951"]
[BlackElo "2308"]
[Annotator "NA"]
[PlyCount "84"]
[EventDate "2019.06.29"]
[EventType "swiss"]
[EventCountry "SVK"]
[SourceTitle "playchess.com"]
[Source "ChessBase"]
[SourceQuality "1"]
[TimeControl "40/5400+30:1800+30"]

1. e4 {[%emt 0:00:00]} d6 {[%emt 0:00:00]} 2. d4 {[%emt 0:00:00]} Nf6 {[%emt 0:00:00]} 3. Nc3 {[%emt 0:00:00]} a6 {[%emt 0:00:03]} 4. f4 {[%emt 0:00:27]} b5 {[%emt 0:00:19]} 5. e5 {[%emt 0:12:56]} Nfd7 {[%emt 0:04:00]} 6. Nf3 {[%emt 0:07:33]} e6 {[%emt 0:01:53]} 7. Be3 {[%emt 0:02:08]} b4 {[%emt 0:04:44]} 8. Ne4 {[%emt 0:01:39]} d5 {[%emt 0:00:29]} 9. Nf2 {[%emt 0:07:04]} c5 {[%emt 0:00:29]} 10. Bd3 {[%emt 0:08:25]} Nc6 {[%emt 0:00:53]} 11. c3 {[%emt 0:02:03]} bxc3 {[%emt 0:07:39]} 12. bxc3 {[%emt 0:00:03]} Qa5 {[%emt 0:01:53]} 13. Bd2 {[%emt 0:03:53]} c4 {[%emt 0:03:22]} 14. Bc2 {[%emt 0:02:21]} Nb6 {[%emt 0:00:43]} 15. a4 {[%emt 0:04:11]} Ne7 {[%emt 0:04:09]} 16. O-O {[%emt 0:01:43]} h5 {[%emt 0:01:13]} 17. Ng5 {[%emt 0:02:39]} g6 {[%emt 0:01:42]} 18. h3 {[%emt 0:05:22]} Nf5 {[%emt 0:01:00]} 19. g4 {[%emt 0:05:20]} hxg4 {[%emt 0:02:29]} 20. hxg4 {[%emt 0:00:16]} Nh6 {[%emt 0:00:26]} 21. Kg2 {[%emt 0:01:03]} Bd7 {[%emt 0:06:27]} 22. Rh1 {[%emt 0:04:23]} Bg7 {[%emt 0:06:36]} 23. Qb1 {[%emt 0:05:48]} f5 {[%emt 0:09:48]} 24. exf6 {[%emt 0:01:04]} Bxf6 {[%emt 0:00:06]} 25. Bxg6+ {[%emt 0:00:49]} Ke7 {[%emt 0:00:05]} 26. Nf3 {[%emt 0:03:56]} Rag8 {[%emt 0:02:05]} 27. Kf1 {[%emt 0:09:50]} Nxg4 {[%emt 0:00:54]} 28. Rxh8 {[%emt 0:00:14]} Rxh8 {[%emt 0:00:37]} 29. Nxg4 {[%emt 0:02:26]} Rh1+ {[%emt 0:00:06]} 30. Ng1 {[%emt 0:00:04]} Bxd4 {[%emt 0:00:04]} 31. Nf2 {[%emt 0:02:12]} Bxf2 {[%emt 0:01:49]} 32. Kxf2 {[%emt 0:00:00]} Rh2+ {[%emt 0:00:08]} 33. Ke1 {[%emt 0:00:20]} d4 {[%emt 0:00:58]} 34. Qb4+ {[%emt 0:05:12]} Qxb4 {[%emt 0:00:21]} 35. cxb4 {[%emt 0:00:01]} Rg2 {[%emt 0:00:45]} 36. Nf3 {[%emt 0:00:27]} Rxg6 {[%emt 0:00:05]} 37. Kf2 {[%emt 0:01:15]} c3 {[%emt 0:00:38]} 38. Be1 {[%emt 0:00:22]} Rg4 {[%emt 0:01:20]} 39. Nxd4 {[%emt 0:00:51]} Rxf4+ {[%emt 0:00:06]} 40. Ke3 {[%emt 0:00:02]} Nd5+ {[%emt 0:00:56]} 41. Kd3 {[%emt 0:30:06]} e5 {[%emt 0:30:04]} 42. Nc2 {[%emt 0:00:00]} Bf5+ {[%emt 0:00:00] Nd4 Bd7 Ne2} 0-1

[Event "22nd Ruzomberok Open 2019"]
[Site "Ruzomberok"]
[Date "2019.06.30"]
[Round "2.5"]
[White "Movsesian, Julia"]
[Black "Druska, Robert"]
[Result "1-0"]
[ECO "B23"]
[WhiteElo "2291"]
[BlackElo "1918"]
[Annotator "NA"]
[PlyCount "41"]
[EventDate "2019.06.29"]
[EventType "swiss"]
[EventCountry "SVK"]
[SourceTitle "playchess.com"]
[Source "ChessBase"]
[SourceQuality "1"]
[TimeControl "40/5400+30:1800+30"]

1. e4 {[%emt 0:00:00]} c5 {[%emt 0:01:55]} 2. Nc3 {[%emt 0:00:00]} e6 {[%emt 0:04:45]} 3. Nf3 {[%emt 0:00:00]} d5 {[%emt 0:00:45]} 4. exd5 {[%emt 0:00:32]} exd5 {[%emt 0:00:42]} 5. d4 {[%emt 0:00:05]} Nf6 {[%emt 0:04:25]} 6. Bg5 {[%emt 0:02:57]} Be7 {[%emt 0:04:55]} 7. dxc5 {[%emt 0:04:03]} O-O {[%emt 0:01:36]} 8. Be2 {[%emt 0:00:39]} Nc6 {[%emt 0:06:22]} 9. O-O {[%emt 0:06:35]} Re8 {[%emt 0:04:59]} 10. Be3 {[%emt 0:16:20]} Ng4 {[%emt 0:20:14]} 11. Nxd5 {[%emt 0:04:55]} Nxe3 {[%emt 0:00:31]} 12. Nxe3 {[%emt 0:00:05]} Qa5 {[%emt 0:06:49]} 13. Bc4 {[%emt 0:03:08]} Bxc5 {[%emt 0:08:19]} 14. Ng5 {[%emt 0:08:08]} Bxe3 {[%emt 0:10:37]} 15. Qh5 {[%emt 0:00:29]} Be6 {[%emt 0:12:49]} 16. Qxh7+ {[%emt 0:00:35]} Kf8 {[%emt 0:00:04]} 17. Nxe6+ {[%emt 0:00:31]} Ke7 {[%emt 0:03:32]} 18. fxe3 {[%emt 0:01:21]} Ne5 {[%emt 0:01:15]} 19. Qxg7 {[%emt 0:00:44]} Rg8 {[%emt 0:01:23]} 20. Qf6+ {[%emt 0:00:11]} Ke8 {[%emt 0:00:50]} 21. Bb5+ {[%emt 0:00:23]} 1-0

[Event "22nd Ruzomberok Open 2019"]
[Site "Ruzomberok"]
[Date "2019.06.30"]
[Round "2.6"]
[White "Koloditsova, Renata"]
[Black "Jakab, Bela"]
[Result "0-1"]
[ECO "C05"]
[WhiteElo "1903"]
[BlackElo "2278"]
[Annotator "NA"]
[PlyCount "84"]
[EventDate "2019.06.29"]
[EventType "swiss"]
[EventCountry "SVK"]
[SourceTitle "playchess.com"]
[Source "ChessBase"]
[SourceQuality "1"]
[TimeControl "40/5400+30:1800+30"]

1. e4 {[%emt 0:00:00]} e6 {[%emt 0:00:00]} 2. d4 {[%emt 0:00:00]} d5 {[%emt 0:00:00]} 3. Nd2 {[%emt 0:00:05]} Nf6 {[%emt 0:00:00]} 4. e5 {[%emt 0:04:43]} Nfd7 {[%emt 0:00:08]} 5. Ngf3 {[%emt 0:05:38]} c5 {[%emt 0:01:56]} 6. c3 {[%emt 0:00:15]} Nc6 {[%emt 0:00:05]} 7. Bd3 {[%emt 0:02:27]} Be7 {[%emt 0:03:00]} 8. O-O {[%emt 0:01:08]} f5 {[%emt 0:05:36]} 9. a3 {[%emt 0:09:10]} Qb6 {[%emt 0:10:17]} 10. Re1 {[%emt 0:08:36]} O-O {[%emt 0:09:07]} 11. c4 {[%emt 0:02:46]} cxd4 {[%emt 0:04:26]} 12. b4 {[%emt 0:05:48]} Qc7 {[%emt 0:05:50]} 13. cxd5 {[%emt 0:03:26]} Ncxe5 {[%emt 0:03:45]} 14. Bb1 {[%emt 0:21:03]} Nxf3+ {[%emt 0:03:45]} 15. Nxf3 {[%emt 0:00:55]} e5 {[%emt 0:01:11]} 16. Nxd4 {[%emt 0:01:51]} Nb6 {[%emt 0:22:04]} 17. Ba2 {[%emt 0:02:27]} Kh8 {[%emt 0:02:40]} 18. Nb5 {[%emt 0:00:19]} Qd7 {[%emt 0:00:58]} 19. d6 {[%emt 0:05:12]} Bd8 {[%emt 0:01:15]} 20. a4 {[%emt 0:03:42]} a6 {[%emt 0:02:16]} 21. Nc3 {[%emt 0:00:32]} a5 {[%emt 0:00:20]} 22. b5 {[%emt 0:05:33]} Bf6 {[%emt 0:02:40]} 23. Be3 {[%emt 0:00:21]} e4 {[%emt 0:07:47]} 24. Rc1 {[%emt 0:01:23]} Bd8 {[%emt 0:00:40]} 25. Bc5 {[%emt 0:01:34]} Qe8 {[%emt 0:02:00]} 26. Bxb6 {[%emt 0:07:54]} Bxb6 {[%emt 0:00:05]} 27. Nd5 {[%emt 0:00:04]} Bd8 {[%emt 0:01:38]} 28. Nc7 {[%emt 0:00:04]} Bxc7 {[%emt 0:00:21]} 29. dxc7 {[%emt 0:01:37]} Be6 {[%emt 0:02:23]} 30. Bxe6 {[%emt 0:01:17]} Qxe6 {[%emt 0:00:01]} 31. Qd4 {[%emt 0:00:14]} Rae8 {[%emt 0:01:24]} 32. Rc4 {[%emt 0:01:20]} Kg8 {[%emt 0:01:49]} 33. Rec1 {[%emt 0:00:22]} f4 {[%emt 0:01:01]} 34. Qc3 {[%emt 0:02:11]} Rc8 {[%emt 0:00:38]} 35. Re1 {[%emt 0:01:04]} e3 {[%emt 0:00:48]} 36. f3 {[%emt 0:00:41]} Rf7 {[%emt 0:00:38]} 37. Qd4 {[%emt 0:01:48]} e2 {[%emt 0:02:01]} 38. b6 {[%emt 0:00:51]} Rd7 {[%emt 0:00:11]} 39. Qxf4 {[%emt 0:00:18]} Qxb6+ {[%emt 0:00:14]} 40. Kh1 {[%emt 0:00:14]} Rdxc7 {[%emt 0:00:20]} 41. Re4 {[%emt 0:10:07]} Qf2 {[%emt 0:01:53]} 42. Qg3 {[%emt 0:00:33]} Qf1+ {[%emt 0:00:07]} 0-1

[Event "22nd Ruzomberok Open 2019"]
[Site "Ruzomberok"]
[Date "2019.06.30"]
[Round "2.7"]
[White "Pniaczek, Marek"]
[Black "Pecho, Juraj"]
[Result "1-0"]
[ECO "B31"]
[WhiteElo "2276"]
[BlackElo "1900"]
[Annotator "NA"]
[PlyCount "57"]
[EventDate "2019.06.29"]
[EventType "swiss"]
[EventCountry "SVK"]
[SourceTitle "playchess.com"]
[Source "ChessBase"]
[SourceQuality "1"]
[TimeControl "40/5400+30:1800+30"]

1. e4 {[%emt 0:00:00]} c5 {[%emt 0:00:00]} 2. Nf3 {[%emt 0:00:00]} Nc6 {[%emt 0:00:00]} 3. Bb5 {[%emt 0:00:00]} g6 {[%emt 0:00:08]} 4. O-O {[%emt 0:00:00]} Bg7 {[%emt 0:00:12]} 5. Re1 {[%emt 0:00:02]} e5 {[%emt 0:01:10]} 6. Bxc6 {[%emt 0:00:11]} dxc6 {[%emt 0:00:27]} 7. d3 {[%emt 0:01:22]} Ne7 {[%emt 0:00:23]} 8. Nbd2 {[%emt 0:02:05]} O-O {[%emt 0:01:34]} 9. Nc4 {[%emt 0:02:02]} f6 {[%emt 0:01:23]} 10. Be3 {[%emt 0:02:00]} b6 {[%emt 0:00:08]} 11. a3 {[%emt 0:03:31]} a5 {[%emt 0:04:32]} 12. b4 {[%emt 0:10:05]} axb4 {[%emt 0:08:13]} 13. axb4 {[%emt 0:00:17]} Rxa1 {[%emt 0:02:11]} 14. Qxa1 {[%emt 0:00:02]} b5 {[%emt 0:01:34]} 15. Ncd2 {[%emt 0:06:26]} cxb4 {[%emt 0:03:45]} 16. Qa2+ {[%emt 0:03:48]} Kh8 {[%emt 0:00:18]} 17. Ra1 {[%emt 0:00:13]} Qc7 {[%emt 0:13:35]} 18. Bc5 {[%emt 0:02:53]} Re8 {[%emt 0:04:18]} 19. Qf7 {[%emt 0:01:09]} Qd8 {[%emt 0:05:44]} 20. Ra8 {[%emt 0:04:26]} Bf8 {[%emt 0:24:52]} 21. Qxf6+ {[%emt 0:00:33]} Kg8 {[%emt 0:02:14]} 22. Ng5 {[%emt 0:00:49]} Bg7 {[%emt 0:01:26]} 23. Qf7+ {[%emt 0:00:51]} Kh8 {[%emt 0:00:10]} 24. Bxe7 {[%emt 0:00:22]} Rxe7 {[%emt 0:06:42]} 25. Rxc8 {[%emt 0:00:07]} Qxc8 {[%emt 0:00:07]} 26. Qxe7 {[%emt 0:00:03]} c5 {[%emt 0:04:56]} 27. Ne6 {[%emt 0:02:48]} Bh6 {[%emt 0:02:01]} 28. Nf3 {[%emt 0:00:05]} Qg8 {[%emt 0:04:49]} 29. Nxe5 {[%emt 0:00:26]} 1-0

[Event "22nd Ruzomberok Open 2019"]
[Site "Ruzomberok"]
[Date "2019.06.30"]
[Round "2.8"]
[White "Janik, Miroslav"]
[Black "Karas, Marek"]
[Result "0-1"]
[ECO "C03"]
[WhiteElo "1889"]
[BlackElo "2268"]
[Annotator "NA"]
[PlyCount "55"]
[EventDate "2019.06.29"]
[EventType "swiss"]
[EventCountry "SVK"]
[SourceTitle "playchess.com"]
[Source "ChessBase"]
[SourceQuality "1"]
[TimeControl "40/5400+30:1800+30"]

1. e4 {[%emt 0:00:00]} e6 {[%emt 0:00:00]} 2. d4 {[%emt 0:00:07]} d5 {[%emt 0:00:00]} 3. Nd2 {[%emt 0:00:15]} h6 {[%emt 0:00:00]} 4. exd5 {[%emt 0:06:11]} exd5 {[%emt 0:00:00]} 5. Ngf3 {[%emt 0:02:00]} Bf5 {[%emt 0:02:31]} 6. Nb3 {[%emt 0:02:06]} Nc6 {[%emt 0:03:26]} 7. c3 {[%emt 0:01:18]} Bd6 {[%emt 0:01:13]} 8. Bd3 {[%emt 0:02:50]} Qf6 {[%emt 0:02:13]} 9. Be3 {[%emt 0:02:23]} Nge7 {[%emt 0:00:39]} 10. Qc2 {[%emt 0:08:27]} O-O-O {[%emt 0:03:37]} 11. O-O-O {[%emt 0:02:16]} g5 {[%emt 0:00:38]} 12. h4 {[%emt 0:09:33]} g4 {[%emt 0:01:06]} 13. Bxf5+ {[%emt 0:02:47]} Nxf5 {[%emt 0:01:06]} 14. Nh2 {[%emt 0:04:47]} Rhg8 {[%emt 0:02:11]} 15. Qe2 {[%emt 0:04:29]} Nxe3 {[%emt 0:01:06]} 16. fxe3 {[%emt 0:00:20]} Qxh4 {[%emt 0:00:16]} 17. Rdg1 {[%emt 0:09:56]} Rde8 {[%emt 0:01:21]} 18. Nf1 {[%emt 0:00:39]} Qg5 {[%emt 0:00:14]} 19. g3 {[%emt 0:00:56]} Ne7 {[%emt 0:01:23]} 20. c4 {[%emt 0:05:07]} Nf5 {[%emt 0:01:11]} 21. Kd2 {[%emt 0:03:38]} Bb4+ {[%emt 0:00:14]} 22. Kd3 {[%emt 0:01:21]} dxc4+ {[%emt 0:00:09]} 23. Kxc4 {[%emt 0:00:15]} Nxe3+ {[%emt 0:00:14]} 24. Nxe3 {[%emt 0:00:29]} Rxe3 {[%emt 0:00:18]} 25. Qf2 {[%emt 0:01:02]} Bd6 {[%emt 0:00:10]} 26. Nc5 {[%emt 0:03:03]} Bxc5 {[%emt 0:01:56]} 27. dxc5 {[%emt 0:00:08]} Rge8 {[%emt 0:01:01]} 28. Kd4 0-1

[Event "22nd Ruzomberok Open 2019"]
[Site "Ruzomberok"]
[Date "2019.06.30"]
[Round "2.9"]
[White "Sarkozy, Ladislav"]
[Black "Ambrozi, Peter"]
[Result "1-0"]
[ECO "B35"]
[WhiteElo "2227"]
[BlackElo "1888"]
[Annotator "NA"]
[PlyCount "50"]
[EventDate "2019.06.29"]
[EventType "swiss"]
[EventCountry "SVK"]
[SourceTitle "playchess.com"]
[Source "ChessBase"]
[SourceQuality "1"]
[TimeControl "40/5400+30:1800+30"]

1. e4 {[%emt 0:00:00]} c5 {[%emt 0:00:00]} 2. Nf3 {[%emt 0:00:07]} Nc6 {[%emt 0:00:00]} 3. Nc3 {[%emt 0:01:18]} g6 {[%emt 0:00:34]} 4. d4 {[%emt 0:01:01]} cxd4 {[%emt 0:00:26]} 5. Nxd4 {[%emt 0:00:10]} Bg7 {[%emt 0:00:06]} 6. Be3 {[%emt 0:00:13]} Nf6 {[%emt 0:00:39]} 7. Bc4 {[%emt 0:00:47]} O-O {[%emt 0:00:16]} 8. Bb3 {[%emt 0:00:16]} a5 {[%emt 0:00:31]} 9. f3 {[%emt 0:04:32]} d5 {[%emt 0:01:00]} 10. exd5 {[%emt 0:03:45]} Nb4 {[%emt 0:01:08]} 11. Nde2 {[%emt 0:01:37]} Bf5 {[%emt 0:01:27]} 12. O-O {[%emt 0:06:15]} a4 {[%emt 0:06:21]} 13. Nxa4 {[%emt 0:01:26]} Nfxd5 {[%emt 0:03:31]} 14. Bf2 {[%emt 0:02:44]} b5 15. Nac3 Nxc3 16. Nxc3 Qxd1 17. Raxd1 Bxc3 18. bxc3 Nxa2 19. Bd4 Rfc8 20. Ra1 Be6 21. Bxe6 fxe6 22. Rfb1 Ra5 23. Rb2 Rca8 24. Rab1 Rb8 25. Ra1 Rba8 1-0

[Event "22nd Ruzomberok Open 2019"]
[Site "Ruzomberok"]
[Date "2019.06.30"]
[Round "2.10"]
[White "Hros, Roman"]
[Black "Zahradnik, Vladimir"]
[Result "1-0"]
[ECO "B20"]
[WhiteElo "2195"]
[BlackElo "1862"]
[Annotator "NA"]
[PlyCount "49"]
[EventDate "2019.06.29"]
[EventType "swiss"]
[EventCountry "SVK"]
[SourceTitle "playchess.com"]
[Source "ChessBase"]
[SourceQuality "1"]
[TimeControl "40/5400+30:1800+30"]

1. e4 {[%emt 0:00:00]} c5 {[%emt 0:00:00]} 2. Be2 {[%emt 0:00:00]} Nc6 {[%emt 0:00:26]} 3. f4 {[%emt 0:00:05]} Nf6 {[%emt 0:02:16]} 4. d3 {[%emt 0:00:07]} d5 {[%emt 0:01:00]} 5. e5 {[%emt 0:00:26]} Ng8 {[%emt 0:00:18]} 6. c3 {[%emt 0:01:10]} g6 {[%emt 0:00:56]} 7. Nf3 {[%emt 0:01:00]} Bg4 {[%emt 0:02:51]} 8. Qb3 {[%emt 0:02:02]} Qd7 {[%emt 0:00:26]} 9. Be3 {[%emt 0:01:25]} e6 {[%emt 0:00:17]} 10. Nbd2 {[%emt 0:00:52]} h5 {[%emt 0:01:13]} 11. g3 {[%emt 0:00:55]} Nh6 {[%emt 0:00:51]} 12. h3 {[%emt 0:00:29]} Bxf3 {[%emt 0:00:34]} 13. Nxf3 {[%emt 0:00:50]} Nf5 {[%emt 0:01:33]} 14. Bf2 {[%emt 0:00:16]} Be7 {[%emt 0:00:56]} 15. O-O-O {[%emt 0:00:33]} d4 {[%emt 0:03:49]} 16. g4 {[%emt 0:01:46]} Ng7 {[%emt 0:00:15]} 17. cxd4 {[%emt 0:08:11]} Nxd4 {[%emt 0:00:38]} 18. Nxd4 {[%emt 0:00:38]} cxd4 {[%emt 0:00:07]} 19. Bf3 {[%emt 0:00:18]} Rb8 {[%emt 0:04:23]} 20. Kb1 {[%emt 0:01:58]} Bc5 {[%emt 0:08:13]} 21. Rc1 {[%emt 0:12:23]} Bb6 {[%emt 0:00:07]} 22. Bh4 {[%emt 0:00:05]} Rh7 {[%emt 0:11:18]} 23. Qa3 {[%emt 0:02:48]} a6 {[%emt 0:01:59]} 24. Qb4 {[%emt 0:08:23]} Ba7 {[%emt 0:06:20]} 25. Bf6 {[%emt 0:01:55]} 1-0